bitfinex-derivatives/quotes_BTCF0:USTF0_20250901
["timestamp","ask_amount","ask_price","bid_price","bid_amount"]
[1756760643482,0.02426446,108620.0,108610.0,1.02918101]
[1756760643674,0.02426446,108620.0,108610.0,0.39634]
[1756760643879,0.02426446,108620.0,108610.0,0.77918101]
[1756760644177,0.02426446,108620.0,108610.0,1.12125401]
[1756760644581,0.02426446,108620.0,108610.0,1.46125401]
[1756760644885,0.02426446,108620.0,108610.0,1.747893]
[1756760645072,0.02426446,108620.0,108610.0,2.38073401]
[1756760645274,0.02426446,108620.0,108610.0,1.5775]
[1756760645476,0.02426446,108620.0,108610.0,1.97034101]
[1756760645672,0.02426446,108620.0,108610.0,2.05241401]
[1756760645878,0.004,108620.0,108610.0,1.5787]
[1756760646079,0.004,108620.0,108610.0,1.96154101]
[1756760646483,0.004,108620.0,108610.0,0.77918101]
[1756760646674,0.004,108620.0,108610.0,0.87125401]
[1756760646879,0.004,108620.0,108610.0,1.12125401]
[1756760647280,0.004,108620.0,108610.0,0.488413]
[1756760647474,0.0960645,108620.0,108610.0,1.97046101]
[1756760647680,0.004,108620.0,108610.0,2.06253401]
[1756760647880,0.0960645,108620.0,108610.0,1.97046101]
[1756760648084,0.0960645,108620.0,108610.0,0.39634]
[1756760649478,0.004,108620.0,108610.0,0.87125401]
[1756760649982,0.004,108620.0,108610.0,0.39634]
[1756760650186,0.004,108620.0,108610.0,1.97574101]
[1756760650389,0.004,108620.0,108610.0,2.06781401]
[1756760650687,0.004,108620.0,108610.0,1.5929]
[1756760651081,0.6148,108620.0,108610.0,0.001]
[1756760651275,0.6148,108620.0,108610.0,0.03581]
[1756760651980,0.004,108620.0,108610.0,0.87152411]
[1756760652384,0.004,108620.0,108610.0,1.17071048]
[1756760652584,0.004,108620.0,108610.0,1.52071048]
[1756760652784,0.004,108620.0,108610.0,1.47152411]
[1756760652985,0.004,108620.0,108610.0,1.53713228]
[1756760653183,0.004,108620.0,108610.0,1.52066086]
[1756760653379,0.004,108620.0,108610.0,1.13781985]
[1756760653689,0.004,108620.0,108610.0,2.74154086]
[1756760653888,0.004,108620.0,108610.0,1.17066086]
[1756760654090,0.004,108620.0,108610.0,2.74122086]
[1756760654489,0.004,108620.0,108610.0,1.29066086]
[1756760654687,0.004,108620.0,108610.0,2.07192411]
[1756760654885,0.004,108620.0,108610.0,2.15192411]
[1756760655089,0.004,108620.0,108610.0,2.45106086]
[1756760655289,0.004,108620.0,108610.0,2.72106086]
[1756760655994,0.004,108620.0,108610.0,2.37192411]
[1756760656690,0.004,108620.0,108610.0,2.12192411]
[1756760657288,0.004,108620.0,108610.0,2.37106086]
[1756760657488,0.004,108620.0,108610.0,2.66106086]
[1756760657901,0.004,108620.0,108610.0,2.42106086]
[1756760658101,0.004,108620.0,108610.0,2.37192411]
[1756760660298,0.004,108620.0,108610.0,2.12192411]
[1756760661294,0.004,108620.0,108610.0,0.87743101]
[1756760661899,0.254,108620.0,108610.0,1.64087]
[1756760662101,0.254,108620.0,108610.0,2.02559457]
[1756760662496,0.254,108620.0,108610.0,0.82931457]
[1756760662698,0.254,108620.0,108610.0,2.02503457]
[1756760663001,0.254,108620.0,108610.0,1.6055]
[1756760663196,0.254,108620.0,108610.0,1.64031]
[1756760663604,0.254,108620.0,108610.0,1.99022457]
[1756760664007,0.254,108620.0,108610.0,1.6055]
[1756760664800,0.3460645,108620.0,108610.0,0.3618]
[1756760665101,0.7068645,108620.0,108610.0,0.001]
[1756760667704,1.0890196,108620.0,108610.0,0.001]
[1756760668611,1.0890196,108620.0,108590.0,0.04913675]
[1756760668612,2.6015396,108620.0,108590.0,0.04913675]
[1756760668905,0.3608,108600.0,108580.0,0.10293396]
[1756760669106,0.3608,108600.0,108590.0,0.04913675]
[1756760669307,0.3608,108600.0,108580.0,0.12757396]
[1756760670007,0.3608,108600.0,108590.0,0.002]
[1756760670413,0.3618,108600.0,108580.0,0.13057396]
[1756760670600,0.3618,108600.0,108580.0,0.15391396]
[1756760670807,0.3618,108600.0,108590.0,0.002]
[1756760671002,0.3638,108600.0,108590.0,0.002]
[1756760671397,0.003,108600.0,108590.0,0.002]
[1756760671603,0.3638,108600.0,108580.0,0.15191396]
[1756760672811,0.3608,108600.0,108580.0,0.15091396]
[1756760673014,0.3678,108600.0,108590.0,0.08379]
[1756760673201,0.0990814,108600.0,108590.0,0.001]
[1756760673398,0.0920899,108590.0,108580.0,0.49925906]
[1756760673614,0.0920899,108590.0,108580.0,0.15191396]
[1756760674404,0.0920899,108590.0,108580.0,0.15091396]
[1756760674711,0.0960899,108590.0,108580.0,0.15191396]
[1756760678598,0.0960899,108590.0,108580.0,1.14486906]
[1756760678798,0.004,108590.0,108580.0,1.23696756]
[1756760679012,0.004,108590.0,108580.0,1.18783081]
[1756760679208,0.004,108590.0,108580.0,1.09573231]
[1756760680012,0.004,108590.0,108580.0,1.18783081]
[1756760681000,0.002,108590.0,108580.0,1.18783081]
[1756760681203,0.002,108590.0,108580.0,1.18883081]
[1756760681607,0.002,108590.0,108580.0,1.25443898]
[1756760682206,0.002,108590.0,108580.0,1.27086895]
[1756760682405,0.3816577,108630.0,108620.0,0.04739]
[1756760682611,0.4816577,108630.0,108610.0,0.47800237]
[1756760683209,0.4816577,108630.0,108610.0,0.52744593]
[1756760684013,0.4896577,108630.0,108610.0,0.52844593]
[1756760684410,0.4936577,108630.0,108610.0,0.52844593]
[1756760684914,0.3608,108620.0,108610.0,0.16764593]
[1756760685115,0.3608,108620.0,108610.0,0.11820237]
[1756760685314,0.4528646,108620.0,108610.0,0.16764593]
[1756760685708,0.0920646,108620.0,108610.0,0.16764593]
[1756760686015,0.0930646,108620.0,108610.0,0.16764593]
[1756760686413,0.0930646,108620.0,108610.0,0.16664593]
[1756760686609,0.0930646,108620.0,108610.0,0.16764593]
[1756760686814,0.4538646,108620.0,108610.0,0.16764593]
[1756760687013,0.4538646,108620.0,108610.0,0.16664593]
[1756760687214,0.4568646,108620.0,108610.0,0.13468356]
[1756760687616,0.0960646,108620.0,108610.0,0.13468356]
[1756760688834,0.0960646,108620.0,108610.0,0.8802319]
[1756760689533,0.0960646,108620.0,108610.0,0.5194319]
[1756760690036,0.004,108620.0,108610.0,0.972305]
[1756760690334,0.004,108620.0,108610.0,1.23878619]
[1756760691630,0.004,108620.0,108610.0,1.17286144]
[1756760692531,0.38112658,108660.0,108650.0,0.06124]
[1756760692734,0.40032658,108660.0,108650.0,0.56544017]
[1756760692934,0.40032658,108660.0,108650.0,0.1476511]
[1756760693135,0.40032658,108660.0,108650.0,0.53239944]
[1756760693436,0.40032658,108660.0,108650.0,0.56541908]
[1756760693836,0.41132658,108660.0,108650.0,0.56741908]
[1756760694033,0.41132658,108660.0,108650.0,0.18267074]
[1756760694229,0.50836468,108660.0,108650.0,0.13410964]
[1756760694432,0.86916468,108660.0,108650.0,0.09725964]
[1756760694736,1.49291302,108660.0,108650.0,0.03401964]
[1756760694938,1.50191302,108660.0,108650.0,0.03601964]
[1756760695242,1.50091302,108660.0,108650.0,0.03501964]
[1756760696233,0.50536468,108660.0,108650.0,0.0255]
[1756760696436,0.86616468,108660.0,108650.0,0.08240964]
[1756760696742,0.86616468,108660.0,108650.0,0.13310964]
[1756760697242,1.11616468,108660.0,108650.0,0.03501964]
[1756760697441,1.50091302,108660.0,108650.0,0.002]
[1756760697742,1.11616468,108660.0,108650.0,0.06324]
[1756760697942,1.11616468,108660.0,108650.0,0.0255]
[1756760698143,1.11616468,108660.0,108650.0,0.05851964]
[1756760698442,1.11616468,108660.0,108650.0,0.002]
[1756760698443,1.50091302,108660.0,108650.0,0.002]
[1756760699237,1.25091302,108660.0,108650.0,0.002]
[1756760700239,0.86616468,108660.0,108650.0,0.10009]
[1756760700542,0.50536468,108660.0,108650.0,0.51785798]
[1756760700739,0.86616468,108660.0,108650.0,0.03501964]
[1756760701143,0.86616468,108660.0,108650.0,0.05851964]
[1756760701345,0.86616468,108660.0,108650.0,0.13310964]
[1756760702846,1.50091302,108660.0,108650.0,0.002]
[1756760704246,0.0920567,108630.0,108620.0,0.03301964]
[1756760704449,2.00096504,108630.0,108620.0,0.03301964]
[1756760704648,1.6162167,108630.0,108620.0,0.03301964]
[1756760705848,2.25096504,108630.0,108620.0,0.03401964]
[1756760706147,2.25496504,108630.0,108620.0,0.03401964]
[1756760706348,1.8702167,108630.0,108620.0,0.03401964]
[1756760706546,2.25496504,108630.0,108620.0,0.03401964]
[1756760707044,2.25696504,108630.0,108620.0,0.03401964]
[1756760707346,2.25796504,108630.0,108620.0,0.03401964]
[1756760707843,2.25440504,108630.0,108620.0,0.03401964]
[1756760708049,0.7088567,108630.0,108620.0,0.03401964]
[1756760708248,1.8702167,108630.0,108620.0,0.03401964]
[1756760708745,0.3608,108620.0,108590.0,0.04404793]
[1756760708941,1.49109668,108600.0,108590.0,0.0046]
[1756760709141,1.88191309,108600.0,108590.0,0.0046]
[1756760709435,2.1519002,108600.0,108590.0,1e-08]
[1756760709642,2.1519002,108600.0,108560.0,0.03483]
[1756760709948,0.3608,108570.0,108560.0,0.05811]
[1756760710349,0.3608,108570.0,108560.0,0.02328]
[1756760711149,0.3608,108570.0,108550.0,0.11511497]
[1756760711349,1.99059725,108580.0,108560.0,0.08269]
[1756760711551,1.60584891,108580.0,108560.0,0.08269]
[1756760712045,0.006,108570.0,108560.0,0.08369]
[1756760712745,0.002,108570.0,108560.0,0.71743834]
[1756760713053,1.17296,108580.0,108570.0,0.08269]
[1756760713250,0.3608,108590.0,108580.0,0.03483]
[1756760713454,1.66224,108590.0,108580.0,0.08269]
[1756760713952,0.4908,108590.0,108580.0,0.08269]
[1756760714347,0.13,108590.0,108580.0,0.08269]
[1756760714548,0.02081641,108600.0,108580.0,1.07823834]
[1756760714749,0.02081641,108600.0,108590.0,0.46743834]
[1756760714945,0.02081641,108600.0,108590.0,0.08269]
[1756760715144,0.76636475,108600.0,108580.0,0.04886]
[1756760715344,0.74554834,108590.0,108580.0,0.001]
[1756760716152,0.83963884,108590.0,108580.0,0.001]
[1756760716354,1.08963884,108590.0,108580.0,0.001]
[1756760716750,0.0921123,108570.0,108560.0,0.46743834]
[1756760717550,0.0921123,108570.0,108560.0,0.71743834]
[1756760717855,0.0921123,108570.0,108560.0,1.07823834]
[1756760718052,0.0921123,108570.0,108560.0,0.71743834]
[1756760718552,0.0921123,108570.0,108560.0,0.71843834]
[1756760718751,0.0931123,108570.0,108560.0,0.72143834]
[1756760718951,0.0931123,108570.0,108560.0,0.47143834]
[1756760719155,0.0931123,108570.0,108560.0,0.33669]
[1756760719557,0.0931123,108570.0,108560.0,0.72143834]
[1756760719945,0.0931123,108570.0,108560.0,0.33669]
[1756760720446,0.0931123,108570.0,108560.0,0.72143834]
[1756760721259,0.001,108570.0,108560.0,1.55910268]
[1756760722058,0.001,108570.0,108560.0,1.08223834]
[1756760723362,0.001,108570.0,108560.0,1.17435434]
[1756760723559,0.001,108570.0,108560.0,1.08223834]
[1756760724554,0.001,108570.0,108560.0,1.17435434]
[1756760724955,0.001,108570.0,108560.0,1.08223834]
[1756760725161,0.0931075,108570.0,108560.0,1.08223834]
[1756760728270,0.0931075,108570.0,108560.0,1.17435404]
[1756760729160,0.0931075,108570.0,108560.0,1.08223834]
[1756760729354,0.0931075,108570.0,108560.0,1.17435404]
[1756760729556,0.47470001,108600.0,108560.0,1.82480238]
[1756760729557,0.02181641,108600.0,108560.0,1.82480238]
[1756760729763,0.02181641,108600.0,108590.0,0.46743834]
[1756760730163,0.02181641,108600.0,108590.0,1.64391834]
[1756760730362,0.001,108600.0,108590.0,2.09680854]
[1756760731471,0.002,108600.0,108590.0,2.09680854]
[1756760731974,0.004,108600.0,108590.0,2.00571834]
[1756760732468,0.004,108600.0,108590.0,2.09780854]
[1756760732655,0.006,108600.0,108590.0,2.00515834]
[1756760732861,0.003,108600.0,108590.0,2.00415834]
[1756760733060,0.004,108600.0,108590.0,2.00915834]
[1756760734370,0.004,108600.0,108590.0,2.10124854]
[1756760734769,0.0960817,108600.0,108590.0,2.00915834]
[1756760735267,0.002,108600.0,108590.0,2.10324854]
[1756760735668,0.002,108600.0,108590.0,2.01115834]
[1756760736173,0.0940817,108600.0,108590.0,2.01115834]
[1756760736373,0.0940817,108600.0,108590.0,1.25937]
[1756760736673,0.0940817,108600.0,108590.0,1.64411834]
[1756760737379,0.0940817,108600.0,108590.0,1.64043834]
[1756760737571,0.3440817,108600.0,108590.0,1.64043834]
[1756760737868,0.3440817,108600.0,108590.0,1.63967834]
[1756760738874,0.3440817,108600.0,108590.0,1.61573]
[1756760739074,0.3440817,108600.0,108590.0,2.00047834]
[1756760739567,0.3440817,108600.0,108590.0,1.25387]
[1756760739771,0.7048817,108600.0,108590.0,0.007]
[1756760740361,1.08963004,108600.0,108590.0,0.007]
[1756760741569,0.7048817,108600.0,108590.0,0.007]
[1756760741770,1.08963004,108600.0,108590.0,0.007]
[1756760742175,0.7048817,108600.0,108590.0,0.007]
[1756760744668,0.4548817,108600.0,108590.0,0.08741]
[1756760746976,0.002,108600.0,108590.0,0.44821]
[1756760747184,0.002,108600.0,108590.0,1.17504874]
[1756760749580,0.0940831,108600.0,108590.0,2.24827834]
[1756760749771,0.0940831,108600.0,108590.0,1.88759834]
[1756760750074,0.0940831,108600.0,108590.0,1.50285]
[1756760750273,0.4548831,108600.0,108590.0,0.08741]
[1756760750473,0.4548831,108600.0,108590.0,0.47215834]
[1756760751675,0.0940831,108600.0,108590.0,0.47215834]
[1756760751878,0.002,108600.0,108590.0,0.92504994]
[1756760752075,0.002,108600.0,108590.0,0.05328]
[1756760752272,0.002,108600.0,108590.0,0.47215834]
[1756760752477,0.002,108600.0,108590.0,0.83295834]
[1756760752683,0.002,108600.0,108590.0,0.92504994]
[1756760752872,0.002,108600.0,108590.0,1.17504994]
[1756760755583,0.002,108600.0,108590.0,0.7903016]
[1756760755778,0.002,108600.0,108590.0,1.17504994]
[1756760757279,0.002,108600.0,108590.0,1.24113744]
[1756760757678,0.002,108600.0,108590.0,1.16904584]
[1756760758376,0.002,108600.0,108590.0,1.26113754]
[1756760758578,0.002,108600.0,108590.0,1.14904584]
[1756760758777,0.002,108600.0,108590.0,1.08295834]
[1756760759181,0.002,108600.0,108590.0,0.89904584]
[1756760759689,0.0940832,108600.0,108590.0,0.89904584]
[1756760760388,0.002,108600.0,108590.0,0.99113754]
[1756760760584,0.002,108600.0,108590.0,1.24113754]
[1756760760792,0.002,108600.0,108590.0,1.56113754]
[1756760760985,0.104272,108600.0,108590.0,1.56113754]
[1756760761193,0.104272,108600.0,108590.0,1.87979838]
[1756760761484,0.104272,108600.0,108590.0,1.96183652]
[1756760762292,0.104272,108600.0,108590.0,1.57708818]
[1756760762986,0.1963552,108600.0,108590.0,1.32708818]
[1756760763191,0.1963552,108600.0,108590.0,1.77637984]
[1756760763391,0.1963552,108600.0,108590.0,2.07841004]
[1756760763588,0.1963552,108600.0,108590.0,0.92505004]
[1756760763793,0.1963552,108600.0,108590.0,2.16036818]
[1756760764194,0.1963552,108600.0,108590.0,2.07833004]
[1756760764389,0.1963552,108600.0,108590.0,1.6935817]
[1756760764687,0.1963552,108600.0,108590.0,2.07833004]
[1756760764893,0.1963552,108600.0,108590.0,2.14448844]
[1756760765094,0.1963552,108600.0,108590.0,1.6676084]
[1756760765295,0.1963552,108600.0,108590.0,2.05235674]
[1756760765893,0.1963552,108600.0,108590.0,2.14444844]
[1756760766789,0.104272,108600.0,108590.0,2.14444844]
[1756760766995,0.104272,108600.0,108590.0,2.50444844]
[1756760767296,0.104272,108600.0,108590.0,2.52032818]
[1756760767792,0.104272,108600.0,108590.0,3.15507652]
[1756760768498,0.104272,108600.0,108590.0,2.77032818]
[1756760768698,0.104272,108600.0,108590.0,3.15507652]
[1756760769184,0.104272,108600.0,108590.0,2.77032818]
[1756760769984,0.104272,108600.0,108590.0,0.91499648]
[1756760770190,0.104272,108600.0,108590.0,1.98055834]
[1756760770491,0.104272,108600.0,108590.0,2.43265004]
[1756760770689,0.104272,108600.0,108590.0,2.89943652]
[1756760771294,0.104272,108600.0,108590.0,3.14943652]
[1756760771492,0.104272,108600.0,108590.0,1.61708818]
[1756760771796,0.104272,108600.0,108590.0,2.76532818]
[1756760775298,0.0920631,108630.0,108590.0,3.20803822]
[1756760775501,0.4528551,108640.0,108630.0,0.08611]
[1756760775689,0.4528551,108640.0,108630.0,0.47085834]
[1756760776399,0.7028551,108640.0,108630.0,0.47085834]
[1756760776596,0.3420551,108640.0,108630.0,0.53704662]
[1756760776899,0.3440551,108640.0,108630.0,0.53804662]
[1756760778105,0.3440551,108640.0,108630.0,0.89884662]
[1756760778494,0.4483271,108640.0,108630.0,0.53804662]
[1756760778901,0.4483271,108640.0,108630.0,0.47185834]
[1756760780197,0.4483271,108640.0,108630.0,0.08711]
[1756760780401,0.4483271,108640.0,108630.0,0.47185834]
[1756760780608,0.8091271,108640.0,108630.0,0.47185834]
[1756760781704,0.4483271,108640.0,108630.0,0.47185834]
[1756760781900,0.8091271,108640.0,108630.0,0.47185834]
[1756760784003,0.106272,108640.0,108630.0,1.36090442]
[1756760784502,0.106272,108640.0,108630.0,1.29471614]
[1756760784705,0.106272,108640.0,108630.0,1.36080672]
[1756760785304,0.104272,108640.0,108630.0,1.36080672]
[1756760785505,0.104272,108640.0,108630.0,1.36280672]
[1756760786007,0.103272,108640.0,108630.0,1.37724531]
[1756760786401,0.103272,108640.0,108630.0,1.62724531]
[1756760787297,0.103272,108640.0,108630.0,1.94590307]
[1756760787504,0.103272,108640.0,108630.0,1.9649133]
[1756760788303,0.103272,108640.0,108630.0,2.03094891]
[1756760789304,0.092027,108670.0,108660.0,0.08611]
[1756760789509,0.0920206,108680.0,108660.0,2.05237044]
[1756760789711,0.0920206,108680.0,108670.0,0.08611]
[1756760789912,0.0920206,108680.0,108670.0,0.47085834]
[1756760790808,0.0920206,108680.0,108670.0,1.56245834]
[1756760791106,0.0920206,108680.0,108670.0,1.59945834]
[1756760791411,0.0940206,108680.0,108670.0,1.60045834]
[1756760791603,0.0950206,108680.0,108670.0,1.60045834]
[1756760792207,0.0940206,108680.0,108670.0,1.60045834]
[1756760792406,0.1982926,108680.0,108670.0,1.60045834]
[1756760794405,0.1982926,108680.0,108670.0,1.69248194]
[1756760794612,0.1982926,108680.0,108670.0,1.60045834]
[1756760795208,0.106272,108680.0,108670.0,2.43328194]
[1756760795706,0.106272,108680.0,108670.0,2.05328194]
[1756760795906,0.1982871,108680.0,108670.0,2.40328194]
[1756760797116,0.106272,108680.0,108670.0,2.40328194]
[1756760798718,0.106272,108680.0,108670.0,2.43328194]
[1756760798915,0.106272,108680.0,108670.0,0.44791]
[1756760799215,0.106272,108680.0,108670.0,1.95217834]
[1756760800612,0.106272,108680.0,108670.0,1.59137834]
[1756760800917,0.106272,108680.0,108670.0,1.59057834]
[1756760801423,0.356272,108680.0,108670.0,1.16883]
[1756760801720,0.74102034,108680.0,108670.0,0.001]
[1756760801919,0.717072,108680.0,108670.0,0.001]
[1756760802120,1.10182034,108680.0,108670.0,0.001]
[1756760802316,1.40182034,108680.0,108670.0,0.001]
[1756760805616,0.517072,108680.0,108670.0,0.02426]
[1756760805822,0.517072,108680.0,108670.0,0.04863]
[1756760806020,0.6090872,108680.0,108670.0,0.04863]
[1756760806718,0.99383554,108680.0,108670.0,0.001]
[1756760806921,1.24383554,108680.0,108670.0,0.001]
[1756760807122,1.53383554,108680.0,108670.0,0.001]
[1756760808820,1.46244443,108680.0,108640.0,0.08337]
[1756760809028,0.3608,108660.0,108640.0,0.08337]
[1756760809221,0.3608,108660.0,108650.0,0.09743]
[1756760809419,0.3608,108660.0,108650.0,0.02326]
[1756760809726,0.3608,108660.0,108640.0,0.08337]
[1756760810225,0.3618,108660.0,108650.0,0.003]
[1756760810724,0.3608,108660.0,108640.0,0.08337]
[1756760810924,0.3618,108660.0,108640.0,0.08737]
[1756760811225,0.3618,108660.0,108640.0,0.05163]
[1756760811421,0.3618,108660.0,108650.0,0.08637]
[1756760811618,0.3618,108660.0,108650.0,0.10043]
[1756760811928,0.3618,108660.0,108650.0,0.09743]
[1756760811929,0.3608,108660.0,108650.0,0.09743]
[1756760812125,0.3618,108660.0,108650.0,0.09743]
[1756760812326,0.37087425,108660.0,108650.0,0.09743]
[1756760812715,0.3618,108660.0,108650.0,0.09743]
[1756760812927,0.001,108660.0,108650.0,0.48217834]
[1756760813123,0.001,108660.0,108650.0,0.82421944]
[1756760813524,0.4619918,108690.0,108670.0,0.04763]
[1756760813728,0.82263985,108690.0,108680.0,0.08337]
[1756760813922,0.8019918,108690.0,108680.0,0.08337]
[1756760814121,0.82263966,108690.0,108680.0,0.02326]
[1756760814323,0.82263966,108690.0,108670.0,0.46811834]
[1756760814629,0.3608,108680.0,108670.0,0.08437]
[1756760814824,0.4408,108680.0,108670.0,0.08437]
[1756760815223,0.4408,108680.0,108670.0,0.08337]
[1756760815824,0.543072,108680.0,108670.0,0.08337]
[1756760816826,0.184272,108680.0,108670.0,0.08437]
[1756760817025,0.104272,108680.0,108670.0,1.17194244]
[1756760817227,0.104272,108680.0,108670.0,1.53194244]
[1756760817525,0.124272,108680.0,108670.0,1.17194244]
[1756760817725,0.126272,108680.0,108670.0,1.17194244]
[1756760817920,0.2182876,108680.0,108670.0,1.07991834]
[1756760818130,0.2182876,108680.0,108670.0,1.17194244]
[1756760818330,0.2182876,108680.0,108670.0,1.07991834]
[1756760818530,0.2182876,108680.0,108670.0,1.17194244]
[1756760818734,0.126272,108680.0,108670.0,1.17194244]
[1756760818934,0.2182876,108680.0,108670.0,1.17194244]
[1756760819328,0.2182876,108680.0,108670.0,0.92194244]
[1756760819831,0.1982876,108680.0,108670.0,0.92194244]
[1756760820424,0.106272,108680.0,108670.0,0.92194244]
[1756760820830,0.106272,108680.0,108670.0,1.17194244]
[1756760821138,0.1982875,108680.0,108670.0,1.17194244]
[1756760821434,0.106272,108680.0,108670.0,1.17194244]
[1756760821935,0.106272,108680.0,108670.0,0.7871941]
[1756760822127,0.106272,108680.0,108670.0,1.17194244]
[1756760828234,0.106272,108680.0,108670.0,1.89669078]
[1756760828629,0.106272,108680.0,108670.0,1.97872892]
[1756760828832,0.001,108700.0,108690.0,0.1399871]
[1756760829032,0.001,108700.0,108690.0,2.00348544]
[1756760829441,0.0929986,108700.0,108690.0,2.00348544]
[1756760829734,0.0929986,108700.0,108690.0,1.6187371]
[1756760830037,0.0939986,108700.0,108690.0,2.00648544]
[1756760830935,0.0939986,108700.0,108690.0,1.6217371]
[1756760831136,0.0939986,108700.0,108690.0,0.44681]
[1756760831337,0.0939986,108700.0,108690.0,1.91031834]
[1756760831728,0.0939986,108700.0,108690.0,0.08601]
[1756760831936,0.3439986,108700.0,108690.0,1.16409]
[1756760832132,0.4462706,108700.0,108690.0,0.08701]
[1756760833633,0.8070706,108700.0,108690.0,0.05198]
[1756760836741,0.8070706,108700.0,108690.0,0.004]
[1756760837241,0.8070706,108700.0,108690.0,0.05198]
[1756760837441,0.8070706,108700.0,108690.0,0.02843]
[1756760838943,0.8070706,108700.0,108690.0,0.05198]
[1756760840044,0.8070706,108700.0,108690.0,0.004]
[1756760841244,0.8070706,108700.0,108690.0,0.08701]
[1756760841442,0.4462706,108700.0,108690.0,0.75519822]
[1756760841640,0.4462706,108700.0,108690.0,0.39439822]
[1756760842641,0.8070706,108700.0,108690.0,0.39439822]
[1756760843641,0.8070706,108700.0,108690.0,0.05198]
[1756760843842,1.11445882,108700.0,108690.0,0.004]
[1756760844339,2.44113882,108700.0,108690.0,0.004]
[1756760844744,2.46177142,108700.0,108690.0,0.004]
[1756760845542,2.51915964,108700.0,108690.0,0.004]
[1756760845849,2.21177142,108700.0,108690.0,0.004]
[1756760846650,2.51915964,108700.0,108650.0,0.16308942]
[1756760846949,0.3608,108660.0,108650.0,0.12805942]
[1756760847151,0.43574188,108660.0,108650.0,0.11399942]
[1756760847445,0.43574188,108660.0,108650.0,0.04798]
[1756760848150,0.44507226,108660.0,108650.0,0.04798]
[1756760848645,0.44507226,108660.0,108650.0,0.02443]
[1756760848853,0.44507226,108660.0,108650.0,0.006]
[1756760849056,0.44707226,108660.0,108650.0,0.006]
[1756760849243,0.44707226,108660.0,108650.0,0.011]
[1756760849964,0.44507226,108660.0,108650.0,0.005]
[1756760850252,0.54834426,108660.0,108650.0,0.009]
[1756760850451,1.15914426,108660.0,108650.0,0.009]
[1756760850654,1.15914426,108660.0,108650.0,0.006]
[1756760851561,1.15814426,108660.0,108650.0,0.002]
[1756760851854,1.15914426,108660.0,108650.0,0.003]
[1756760852247,1.25117676,108660.0,108650.0,0.003]
[1756760852456,1.25117676,108660.0,108650.0,0.001]
[1756760852645,1.25217676,108660.0,108650.0,0.001]
[1756760854852,1.25217676,108660.0,108650.0,0.02551]
[1756760855055,2.30185676,108660.0,108650.0,0.04831]
[1756760855255,2.30185676,108660.0,108650.0,0.001]
[1756760856656,2.30185676,108660.0,108650.0,0.02551]
[1756760857258,2.30185676,108660.0,108650.0,0.001]
[1756760858957,0.64137676,108660.0,108650.0,0.484294]
[1756760859157,0.27124638,108660.0,108650.0,0.484294]
[1756760859355,0.27124638,108660.0,108650.0,1.1871349]
[1756760859756,0.1963045,108660.0,108650.0,1.1871349]
[1756760860759,0.1963045,108660.0,108650.0,1.095094]
[1756760861357,0.1963045,108660.0,108650.0,0.845094]
[1756760861759,0.1963045,108660.0,108650.0,1.187135]
[1756760862360,0.104272,108660.0,108650.0,1.547135]
[1756760863257,0.104272,108660.0,108650.0,1.557135]
[1756760864158,0.104272,108660.0,108650.0,1.497135]
[1756760864360,0.0930046,108700.0,108690.0,0.08418]
[1756760864552,0.0930046,108700.0,108690.0,0.468704]
[1756760864969,0.0929979,108700.0,108690.0,0.468704]
[1756760865157,0.001,108700.0,108690.0,0.9215104]
[1756760866265,0.006,108700.0,108690.0,0.9225104]
[1756760866969,0.002,108700.0,108690.0,0.9215104]
[1756760867364,0.002,108700.0,108690.0,1.2615104]
[1756760867564,0.111272,108700.0,108690.0,1.1925104]
[1756760867863,0.111272,108700.0,108690.0,1.8370664]
[1756760868055,0.104272,108700.0,108690.0,1.8360664]
[1756760868370,0.106272,108700.0,108690.0,2.2215904]
[1756760868760,0.105272,108700.0,108690.0,2.2235904]
[1756760869169,0.104272,108700.0,108690.0,2.2235904]
[1756760869369,0.104272,108700.0,108690.0,2.2255904]
[1756760869572,0.104272,108700.0,108690.0,1.084504]
[1756760870672,0.104272,108700.0,108690.0,0.69998]
[1756760870860,0.104272,108700.0,108690.0,1.084504]
[1756760871258,0.104272,108700.0,108690.0,1.17651]
[1756760871769,0.1962695,108700.0,108690.0,1.17651]
[1756760872173,0.1962695,108700.0,108690.0,0.791986]
[1756760872372,0.1962695,108700.0,108690.0,1.17651]
[1756760872882,0.1962695,108700.0,108690.0,0.473704]
[1756760873176,0.1962695,108700.0,108690.0,0.834504]
[1756760874375,0.1962695,108700.0,108690.0,0.473704]
[1756760874575,0.5570695,108700.0,108690.0,0.08918]
[1756760875378,0.5570695,108700.0,108690.0,0.473704]
[1756760875578,0.5570695,108700.0,108690.0,0.08918]
[1756760876483,0.5570695,108700.0,108690.0,0.473704]
[1756760877578,0.5570695,108700.0,108690.0,0.08918]
[1756760877982,0.5570695,108700.0,108690.0,0.05231]
[1756760878188,0.5570695,108700.0,108690.0,0.08918]
[1756760879486,0.5570695,108700.0,108690.0,0.473704]
[1756760880482,1.0270695,108700.0,108690.0,0.005]
[1756760880881,1.0270695,108700.0,108690.0,0.08918]
[1756760881888,1.0270695,108700.0,108690.0,0.005]
[1756760882075,1.33449601,108700.0,108690.0,0.005]
[1756760884088,1.41147297,108700.0,108690.0,0.005]
[1756760884278,1.41047297,108700.0,108690.0,0.002]
[1756760884479,1.41447297,108700.0,108690.0,0.003]
[1756760884679,1.41647297,108700.0,108690.0,0.001]
[1756760884985,1.41647297,108700.0,108660.0,0.46858347]
[1756760885186,0.3608,108670.0,108660.0,0.46858347]
[1756760885991,0.3608,108670.0,108660.0,0.04731]
[1756760886187,0.3608,108670.0,108660.0,0.04831]
[1756760886490,0.3608,108670.0,108660.0,0.0821]
[1756760886680,0.3608,108670.0,108660.0,0.04831]
[1756760887589,0.3618,108670.0,108660.0,0.05131]
[1756760887789,0.3618,108670.0,108660.0,0.0851]
[1756760888787,0.453825,108670.0,108660.0,0.0851]
[1756760889189,0.4631946,108670.0,108660.0,0.0851]
[1756760890391,0.5654666,108670.0,108660.0,0.0851]
[1756760892996,1.6121866,108670.0,108660.0,0.0851]
[1756760895599,1.6121866,108670.0,108660.0,0.004]
[1756760895802,1.6121866,108670.0,108660.0,0.02768]